fUSD/lending_fUSD_20250105
["ID","MTS","AMOUNT","RATE_DAILY","PERIOD"]
[347668977,1736046632728,-150.0,0.00011909,2]
[347668978,1736046632737,-150.0,0.00011929,2]
[347668979,1736046632747,-150.0,0.00011934,2]
[347668980,1736046632756,-150.0,0.0001194,2]
[347668981,1736046632767,-150.0,0.0001194,2]
[347668982,1736046632776,-864.13163117,0.0001195,2]
[347668985,1736046632822,-357.02375455,0.0001195,2]
[347668987,1736046632833,-630.1214688,0.0001195,2]
[347668989,1736046632845,-121.62614664,0.0001195,2]
[347668991,1736046632854,-557.76011965,0.0001195,2]
[347668993,1736046632865,-685.05424735,0.0001195,2]
[347668996,1736046632900,-19688.135533,0.0001195,2]
[347668997,1736046632908,-193.62622888,0.00011952,2]
[347668998,1736046632917,-150.0,0.00011953,2]
[347668999,1736046632926,-150.0,0.00011985,2]
[347669000,1736046632934,-150.0,0.00011991,2]
[347669001,1736046632943,-170.53112506,0.00011994,2]
[347669002,1736046632952,-1500.0,0.00011996,2]
[347669003,1736046632962,-150.0,0.00011996,2]
[347669004,1736046632970,-150.0,0.00011996,2]
[347669005,1736046632979,-500.0,0.00011997,2]
[347669006,1736046632988,-500.0,0.00011997,2]
[347669007,1736046632997,-500.0,0.00011997,2]
[347669008,1736046633006,-500.0,0.00011997,2]
[347669009,1736046633015,-500.0,0.00011997,2]
[347669010,1736046633024,-2666.83,0.00012,2]
[347669011,1736046633033,-400.0,0.00012,2]
[347669012,1736046633042,-50000.0,0.00012,2]
[347669013,1736046633051,-17.34698916,0.00012,2]
[347669034,1736046638244,-347.65301084,0.00012,2]
[347669035,1736046638254,-915.5053,0.00012,2]
[347669036,1736046638265,-915.5053,0.00012,2]
[347669037,1736046638274,-1000.0,0.00012,2]
[347669038,1736046638284,-1105.9588,0.00012,2]
[347669039,1736046638293,-1105.9588,0.00012,2]
[347669040,1736046638302,-230.0,0.00012,2]
[347669041,1736046638312,-579.6581,0.00012,2]
[347669042,1736046638321,-579.6581,0.00012,2]
[347669043,1736046638331,-150.0,0.00012002,2]
[347669044,1736046638340,-188.5311351,0.00012011,2]
[347669045,1736046638409,-811.4688649,0.00012011,2]
[347669046,1736046638418,-1000.0,0.00012011,2]
[347669047,1736046638429,-1000.0,0.00012011,2]
[347669048,1736046638438,-1000.0,0.00012011,2]
[347669049,1736046638447,-1000.0,0.00012011,2]
[347669050,1736046638457,-2.8784447,0.00012011,2]
[347669052,1736046638575,-997.1215553,0.00012011,2]
[347669053,1736046638589,-946.34742788,0.00012011,2]
[347669068,1736046640319,-53.65257212,0.00012011,2]
[347669069,1736046640328,-946.34742788,0.00012011,2]
[347669070,1736046640340,-53.65257212,0.00012011,2]
[347669071,1736046640349,-1000.0,0.00012011,2]
[347669072,1736046640360,-12.05851278,0.00012011,2]
[347669073,1736046640491,-385.45910154,0.00012011,2]
[347669074,1736046640502,-571.33144562,0.00012011,2]
[347669075,1736046640858,-31.15094006,0.00012011,2]
[347669076,1736046640867,-150.0,0.00012017,2]
[347669077,1736046640876,-150.0,0.00012022,2]
[347669078,1736046640885,-150.0,0.0001203,2]
[347669079,1736046640895,-18.84905994,0.0001204,2]
[347669094,1736046643526,-132.8800548,0.0001204,2]
[347669095,1736046643536,-500.0,0.00012045,2]
[347669096,1736046643546,-1190.69,0.00012045,2]
[347669097,1736046643557,-593.51,0.00012045,2]
[347669098,1736046643566,-1066.31,0.00012045,2]
[347669099,1736046643576,-1243.77,0.00012045,2]
[347669100,1736046643591,-500.0,0.00012045,2]
[347669101,1736046643600,-500.0,0.00012045,2]
[347669102,1736046643610,-500.0,0.00012045,2]
[347669103,1736046643619,-500.0,0.00012045,2]
[347669104,1736046643629,-500.0,0.00012045,2]
[347669105,1736046643639,-500.0,0.00012045,2]
[347669106,1736046643648,-714.84,0.00012045,2]
[347669107,1736046643659,-500.0,0.00012045,2]
[347669108,1736046643668,-500.0,0.00012045,2]
[347669109,1736046643677,-150.0,0.00012046,2]
[347669110,1736046643687,-500.28078689,0.00012047,2]
[347669111,1736046643696,-500.12351244,0.00012047,2]
[347669112,1736046643706,-502.50217144,0.00012047,2]
[347669113,1736046643715,-500.83168012,0.00012047,2]
[347669114,1736046643724,-250.37602078,0.00012047,2]
[347669116,1736046643735,-249.62397922,0.00012047,2]
[347669118,1736046643745,-12.84602078,0.00012047,2]
[347669120,1736046643756,-465.51680003,0.00012047,2]
[347669122,1736046643768,-21.63717919,0.00012047,2]
[347669123,1736046643777,-478.36282081,0.00012047,2]
[347669142,1736046646285,-24.92716754,0.00012047,2]
[347669144,1736046646295,-502.37305042,0.00012047,2]
[347669146,1736046646304,-500.23967278,0.00012047,2]
[347669147,1736046646314,-499.22159297,0.00012047,2]
[347669148,1736046646324,-501.06811418,0.00012047,2]
[347669149,1736046646334,-501.55620856,0.00012047,2]
[347669151,1736046646343,-406.54839938,0.00012047,2]
[347669153,1736046646353,-154.06579367,0.00012047,2]
[347669155,1736046646366,-345.93420633,0.00012047,2]
[347669157,1736046646375,-461.12126367,0.00012047,2]
[347669165,1736046646446,-38.87873633,0.00012047,2]
[347669167,1736046646455,-500.0,0.00012047,2]
[347669169,1736046646464,-434.84373939,0.00012047,2]
[347669170,1736046646474,-483.84874828,0.00012047,2]
[347669171,1736046646485,-16.15125172,0.00012047,2]
[347669172,1736046646494,-500.0,0.00012047,2]
[347669173,1736046646504,-535.36174188,0.00012047,2]
[347669174,1736046646514,-500.0,0.00012047,2]
[347669175,1736046646523,-537.42,0.00012047,2]
[347669176,1736046646533,-501.62701366,0.00012047,2]
[347669177,1736046646542,-500.0,0.00012047,2]
[347669178,1736046646552,-82.88999324,0.00012047,2]
[347669179,1736046646587,-700.40000676,0.00012047,2]
[347669180,1736046646597,-500.0,0.00012047,2]
[347669181,1736046646606,-1021.9,0.00012047,2]
[347669183,1736046646616,-500.0,0.00012047,2]
[347669184,1736046646625,-500.0,0.00012047,2]
[347669185,1736046646635,-500.0,0.00012047,2]
[347669186,1736046646644,-500.0,0.00012047,2]
[347669187,1736046646653,-500.0,0.00012047,2]
[347669188,1736046646664,-500.0,0.00012047,2]
[347669189,1736046646674,-500.0,0.00012047,2]
[347669190,1736046646683,-500.0,0.00012047,2]
[347669191,1736046646692,-587.03920724,0.00012047,2]
[347669192,1736046646701,-500.0,0.00012047,2]
[347669193,1736046646710,-500.0,0.00012047,2]
[347669194,1736046646719,-500.0,0.00012047,2]
[347669195,1736046646729,-500.0,0.00012047,2]
[347669196,1736046646738,-938.25,0.00012047,2]
[347669197,1736046646747,-500.0,0.00012047,2]
[347669198,1736046646756,-500.0,0.00012047,2]
[347669199,1736046646765,-501.29210392,0.00012047,2]
[347669201,1736046646775,-500.0,0.00012047,2]
[347669202,1736046646784,-500.0,0.00012047,2]
[347669203,1736046646793,-500.0,0.00012047,2]
[347669204,1736046646802,-500.0,0.00012047,2]
[347669205,1736046646811,-503.08281749,0.00012047,2]
[347669206,1736046646820,-500.0,0.00012047,2]
[347669207,1736046646830,-500.0,0.00012047,2]
[347669208,1736046646842,-502.40358753,0.00012048,2]
[347669209,1736046646851,-500.0,0.00012048,2]
[347669210,1736046646861,-500.0,0.00012048,2]
[347669211,1736046646870,-500.23987276,0.00012048,2]
[347669212,1736046646879,-500.0,0.00012048,2]
[347669213,1736046646888,-500.62593596,0.00012048,2]
[347669214,1736046646897,-501.73896908,0.00012048,2]
[347669215,1736046646907,-502.08275398,0.00012048,2]
[347669216,1736046646916,-501.4144116,0.00012048,2]
[347669217,1736046646925,-501.90840369,0.00012048,2]
[347669218,1736046646935,-643.37516956,0.00012048,2]
[347669219,1736046646944,-500.0,0.00012048,2]
[347669220,1736046646953,-504.45173896,0.00012048,2]
[347669221,1736046646963,-500.0,0.00012048,2]
[347669222,1736046646972,-500.66757515,0.00012048,2]
[347669223,1736046646982,-576.98587077,0.00012048,2]
[347669224,1736046646992,-504.54958486,0.00012048,2]
[347669225,1736046647002,-502.33334305,0.00012048,2]
[347669226,1736046647011,-500.47047034,0.00012048,2]
[347669227,1736046647020,-505.96249057,0.00012048,2]
[347669228,1736046647028,-516.8091677,0.00012048,2]
[347669229,1736046647038,-538.51864083,0.00012048,2]
[347669230,1736046647046,-576.01512006,0.00012048,2]
[347669231,1736046647055,-500.62899399,0.00012048,2]
[347669232,1736046647064,-500.0,0.00012048,2]
[347669233,1736046647073,-501.12120225,0.00012048,2]
[347669234,1736046647082,-503.69742786,0.00012048,2]
[347669235,1736046647091,-504.21455759,0.00012048,2]
[347669236,1736046647100,-503.07117493,0.00012048,2]
[347669237,1736046647109,-500.0,0.00012048,2]
[347669238,1736046647118,-500.5030024,0.00012048,2]
[347669239,1736046647127,-522.16785656,0.00012048,2]
[347669240,1736046647136,-504.72426428,0.00012048,2]
[347669241,1736046647145,-500.0,0.00012048,2]
[347669242,1736046647154,-607.17024488,0.00012048,2]
[347669243,1736046647163,-500.0,0.00012048,2]
[347669244,1736046647171,-577.45003492,0.00012048,2]
[347669245,1736046647181,-502.39853518,0.00012048,2]
[347669246,1736046647190,-511.87687607,0.00012048,2]
[347669247,1736046647199,-500.0,0.00012048,2]
[347669248,1736046647208,-502.88316519,0.00012048,2]
[347669249,1736046647218,-504.25814367,0.00012048,2]
[347669250,1736046647227,-500.0,0.00012048,2]
[347669251,1736046647236,-500.0,0.00012048,2]
[347669252,1736046647244,-513.02652356,0.00012048,2]
[347669253,1736046647254,-500.0,0.00012048,2]
[347669254,1736046647263,-500.0,0.00012048,2]
[347669255,1736046647271,-501.72286133,0.00012048,2]
[347669256,1736046647281,-500.0,0.00012048,2]
[347669257,1736046647290,-500.0,0.00012048,2]
[347669258,1736046647299,-243.24120917,0.00012048,2]
[347669259,1736046647308,-500.0,0.00012048,2]
[347669260,1736046647317,-502.13490203,0.00012048,2]
[347669261,1736046647326,-500.0,0.00012048,2]
[347669262,1736046647335,-500.60264665,0.00012048,2]
[347669263,1736046647345,-502.14068932,0.00012048,2]
[347669264,1736046647354,-581.08,0.00012048,2]
[347669265,1736046647364,-502.49912951,0.00012048,2]
[347669266,1736046647373,-502.24264529,0.00012048,2]
[347669267,1736046647382,-501.57917275,0.00012048,2]
[347669268,1736046647391,-500.0,0.00012048,2]
[347669269,1736046647399,-500.0,0.00012048,2]
[347669270,1736046647408,-534.71328466,0.00012048,2]
[347669271,1736046647418,-472.71255714,0.00012048,2]
[347669272,1736046647427,-207.93411349,0.00012048,2]
[347669273,1736046647437,-506.53538198,0.00012048,2]
[347669274,1736046647446,-209.66087049,0.00012048,2]
[347669275,1736046647456,-500.0,0.00012048,2]
[347669276,1736046647466,-500.32590016,0.00012048,2]
[347669277,1736046647475,-502.03115034,0.00012048,2]
[347669278,1736046647485,-500.0,0.00012048,2]
[347669279,1736046647494,-226.59772821,0.00012048,2]
[347669280,1736046647504,-502.8008447,0.00012048,2]
[347669281,1736046647513,-434.93813655,0.00012048,2]
[347669282,1736046647524,-500.0,0.00012048,2]
[347669283,1736046647532,-171.80693245,0.00012048,2]
[347669284,1736046647542,-501.25614265,0.00012048,2]
[347669285,1736046647551,-383.36868432,0.00012048,2]
[347669286,1736046647560,-645.67551734,0.00012048,2]
[347669287,1736046647569,-500.97769883,0.00012048,2]
[347669288,1736046647579,-500.0,0.00012048,2]
[347669289,1736046647596,-500.0,0.00012048,2]
[347669290,1736046647612,-500.0,0.00012048,2]
[347669291,1736046647622,-501.54035636,0.00012048,2]
[347669292,1736046647632,-500.0,0.00012048,2]
[347669293,1736046647641,-500.0,0.00012048,2]
[347669294,1736046647651,-604.25561167,0.00012048,2]
[347669295,1736046647660,-503.67,0.00012048,2]
[347669296,1736046647669,-276.81150598,0.00012048,2]
[347669297,1736046647678,-500.0,0.00012048,2]
[347669298,1736046647687,-501.41416726,0.00012048,2]
[347669299,1736046647696,-502.53338619,0.00012048,2]
[347669300,1736046647705,-500.0,0.00012048,2]
[347669301,1736046647714,-505.58092135,0.00012048,2]
[347669302,1736046647723,-466.67903996,0.00012048,2]
[347669303,1736046647732,-500.0,0.00012048,2]
[347669304,1736046647741,-500.0,0.00012048,2]
[347669305,1736046647750,-500.0,0.00012048,2]
[347669306,1736046647759,-500.0,0.00012048,2]
[347669307,1736046647768,-500.0,0.00012048,2]
[347669308,1736046647777,-500.0,0.00012048,2]
[347669309,1736046647787,-500.0,0.00012048,2]
[347669310,1736046647797,-500.0,0.00012048,2]
[347669311,1736046647806,-500.0,0.00012048,2]
[347669312,1736046647816,-500.0,0.00012048,2]
[347669313,1736046647825,-500.0,0.00012048,2]
[347669314,1736046647835,-376.53979046,0.00012048,2]
[347669315,1736046647844,-500.0,0.00012048,2]
[347669316,1736046647855,-500.0,0.00012048,2]
[347669317,1736046647865,-500.0,0.00012048,2]
[347669318,1736046647875,-194.81370789,0.00012048,2]
[347669319,1736046647885,-500.0,0.00012048,2]
[347669320,1736046647895,-500.0,0.00012048,2]
[347669321,1736046647905,-631.68646993,0.00012048,2]
[347669322,1736046647915,-483.68104022,0.00012048,2]
[347669323,1736046647925,-556.75098554,0.00012048,2]
[347669324,1736046647936,-500.0,0.00012048,2]
[347669325,1736046647945,-500.0,0.00012048,2]
[347669326,1736046647954,-500.0,0.00012048,2]
[347669327,1736046647963,-500.0,0.00012048,2]
[347669328,1736046647972,-500.0,0.00012048,2]
[347669329,1736046647982,-500.0,0.00012048,2]
[347669330,1736046647991,-457.52743739,0.00012048,2]
[347669331,1736046648002,-500.0,0.00012048,2]
[347669332,1736046648012,-500.0,0.00012048,2]
[347669333,1736046648021,-228.6475002,0.00012048,2]
[347669334,1736046648030,-362.29600248,0.00012048,2]
[347669335,1736046648039,-414.42614099,0.00012048,2]
[347669336,1736046648048,-432.75799413,0.00012048,2]
[347669337,1736046648058,-500.0,0.00012048,2]
[347669338,1736046648067,-217.46029969,0.00012048,2]
[347669339,1736046648076,-500.0,0.00012048,2]
[347669340,1736046648086,-352.28621464,0.00012048,2]
[347669341,1736046648095,-500.0,0.00012048,2]
[347669342,1736046648104,-500.0,0.00012048,2]
[347669343,1736046648113,-500.0,0.00012048,2]
[347669344,1736046648122,-500.0,0.00012048,2]
[347669345,1736046648131,-500.0,0.00012048,2]
[347669346,1736046648141,-500.0,0.00012048,2]
[347669347,1736046648150,-500.0,0.00012048,2]
[347669348,1736046648159,-500.0,0.00012048,2]
[347669349,1736046648168,-252.22058355,0.00012048,2]
[347669350,1736046648177,-500.0,0.00012048,2]
[347669351,1736046648186,-500.0,0.00012048,2]
[347669352,1736046648197,-500.0,0.00012048,2]
[347669353,1736046648206,-152.874612,0.00012048,2]
[347669354,1736046648215,-500.0,0.00012048,2]
[347669355,1736046648224,-500.0,0.00012048,2]
[347669356,1736046648233,-176.49713559,0.00012048,2]
[347669357,1736046648243,-500.0,0.00012048,2]
[347669358,1736046648252,-215.47618577,0.00012048,2]
[347669359,1736046648261,-223.54916,0.00012048,2]
[347669360,1736046648270,-500.0,0.00012048,2]
[347669361,1736046648280,-500.0,0.00012048,2]
[347669362,1736046648289,-500.0,0.00012048,2]
[347669363,1736046648298,-500.0,0.00012048,2]
[347669364,1736046648307,-500.0,0.00012048,2]
[347669365,1736046648317,-500.0,0.00012048,2]
[347669366,1736046648326,-500.0,0.00012048,2]
[347669367,1736046648336,-500.0,0.00012048,2]
[347669368,1736046648346,-391.64510691,0.00012048,2]
[347669369,1736046648355,-201.154449,0.00012048,2]
[347669370,1736046648364,-488.53723283,0.00012048,2]
[347669371,1736046648374,-500.0,0.00012048,2]
[347669372,1736046648383,-500.0,0.00012048,2]
[347669373,1736046648393,-170.21604094,0.00012048,2]
[347669374,1736046648402,-552.81941595,0.00012048,2]
[347669375,1736046648412,-500.0,0.00012048,2]
[347669376,1736046648421,-500.0,0.00012048,2]
[347669377,1736046648430,-500.0,0.00012048,2]
[347669378,1736046648440,-500.0,0.00012048,2]
[347669379,1736046648450,-152.10429978,0.00012048,2]
[347669380,1736046648459,-344.05500503,0.00012048,2]
[347669381,1736046648468,-500.0,0.00012048,2]
[347669382,1736046648478,-526.062125,0.00012048,2]
[347669383,1736046648487,-500.0,0.00012048,2]
[347669384,1736046648496,-500.0,0.00012048,2]
[347669385,1736046648506,-500.0,0.00012048,2]
[347669386,1736046648515,-276.6154822,0.00012048,2]
[347669387,1736046648525,-500.0,0.00012048,2]
[347669388,1736046648534,-500.0,0.00012048,2]
[347669389,1736046648543,-500.0,0.00012048,2]
[347669390,1736046648554,-500.0,0.00012048,2]
[347669391,1736046648566,-500.0,0.00012048,2]
[347669392,1736046648575,-500.0,0.00012048,2]
[347669393,1736046648589,-500.0,0.00012048,2]
[347669394,1736046648598,-500.0,0.00012048,2]
[347669395,1736046648608,-500.0,0.00012048,2]
[347669396,1736046648617,-500.0,0.00012048,2]
[347669397,1736046648628,-500.0,0.00012048,2]
[347669398,1736046648637,-489.55763258,0.00012048,2]
[347669399,1736046648646,-500.0,0.00012048,2]
[347669400,1736046648657,-500.0,0.00012048,2]
[347669401,1736046648666,-368.45440469,0.00012048,2]
[347669402,1736046648676,-500.0,0.00012048,2]
[347669403,1736046648685,-500.0,0.00012048,2]
[347669404,1736046648695,-513.62,0.00012048,2]
[347669405,1736046648704,-500.0,0.00012048,2]
[347669406,1736046648713,-500.0,0.00012048,2]
[347669407,1736046648722,-500.0,0.00012048,2]
[347669408,1736046648732,-500.0,0.00012048,2]
[347669409,1736046648741,-500.0,0.00012048,2]
[347669410,1736046648750,-472.20749973,0.00012048,2]
[347669411,1736046648759,-268.11980402,0.00012048,2]
[347669412,1736046648768,-500.0,0.00012048,2]
[347669413,1736046648777,-500.0,0.00012048,2]
[347669414,1736046648787,-500.0,0.00012048,2]
[347669415,1736046648796,-500.0,0.00012048,2]
[347669416,1736046648805,-500.0,0.00012048,2]
[347669417,1736046648814,-500.0,0.00012048,2]
[347669418,1736046648823,-500.0,0.00012048,2]
[347669419,1736046648833,-500.0,0.00012048,2]
[347669420,1736046648842,-500.0,0.00012048,2]
[347669421,1736046648851,-500.0,0.00012048,2]
[347669422,1736046648861,-500.0,0.00012048,2]
[347669423,1736046648870,-500.0,0.00012048,2]
[347669424,1736046648879,-500.0,0.00012048,2]
[347669425,1736046648888,-500.0,0.00012048,2]
[347669426,1736046648897,-500.0,0.00012048,2]
[347669427,1736046648906,-314.42467077,0.00012048,2]
[347669428,1736046648916,-409.51198681,0.00012048,2]
[347669429,1736046648925,-500.0,0.00012048,2]
[347669430,1736046648934,-615.10807429,0.00012048,2]
[347669431,1736046648943,-500.0,0.00012048,2]
[347669432,1736046648952,-500.0,0.00012048,2]
[347669433,1736046648961,-500.0,0.00012048,2]
[347669434,1736046648971,-500.0,0.00012048,2]
[347669435,1736046648980,-500.0,0.00012048,2]
[347669436,1736046648990,-398.01590463,0.00012048,2]
[347669437,1736046648998,-500.0,0.00012048,2]
[347669438,1736046649007,-500.0,0.00012048,2]
[347669439,1736046649017,-500.0,0.00012048,2]
[347669440,1736046649027,-219.37875263,0.00012048,2]
[347669441,1736046649037,-500.0,0.00012048,2]
[347669442,1736046649046,-500.0,0.00012048,2]
[347669443,1736046649055,-500.0,0.00012048,2]
[347669444,1736046649064,-266.81933757,0.00012048,2]
[347669445,1736046649075,-500.0,0.00012048,2]
[347669446,1736046649084,-500.0,0.00012048,2]
[347669447,1736046649094,-236.09491551,0.00012048,2]
[347669448,1736046649103,-500.0,0.00012048,2]
[347669449,1736046649113,-500.0,0.00012048,2]
[347669450,1736046649123,-500.0,0.00012048,2]
[347669451,1736046649131,-507.05961571,0.00012049,2]
[347669452,1736046649141,-260.20423195,0.00012049,2]
[347669453,1736046649151,-517.36152509,0.00012049,2]
[347669454,1736046649160,-224.35113824,0.00012049,2]
[347669455,1736046649170,-500.0,0.00012049,2]
[347669456,1736046649179,-477.67723121,0.00012049,2]
[347669457,1736046649190,-552.17506897,0.00012049,2]
[347669458,1736046649199,-557.91026765,0.00012049,2]
[347669459,1736046649208,-614.0149494,0.00012049,2]
[347669460,1736046649217,-500.0,0.00012049,2]
[347669461,1736046649227,-255.98277127,0.00012049,2]
[347669462,1736046649236,-500.0,0.00012049,2]
[347669463,1736046649245,-612.47463077,0.00012049,2]
[347669464,1736046649255,-465.23561084,0.00012049,2]
[347669465,1736046649264,-313.519713,0.00012049,2]
[347669466,1736046649273,-500.0,0.00012049,2]
[347669467,1736046649283,-287.61606334,0.00012049,2]
[347669468,1736046649292,-200.69856461,0.00012049,2]
[347669469,1736046649301,-500.0,0.00012049,2]
[347669470,1736046649311,-500.0,0.00012049,2]
[347669471,1736046649320,-500.0,0.00012049,2]
[347669472,1736046649330,-500.0,0.00012049,2]
[347669473,1736046649340,-500.0,0.00012049,2]
[347669474,1736046649349,-500.0,0.00012049,2]
[347669475,1736046649358,-500.0,0.00012049,2]
[347669476,1736046649368,-500.0,0.00012049,2]
[347669477,1736046649377,-500.0,0.00012049,2]
[347669478,1736046649387,-399.62118624,0.00012049,2]
[347669479,1736046649397,-500.0,0.00012049,2]
[347669480,1736046649406,-500.0,0.00012049,2]
[347669481,1736046649416,-500.0,0.00012049,2]
[347669482,1736046649426,-500.0,0.00012049,2]
[347669483,1736046649437,-500.0,0.00012049,2]
[347669484,1736046649446,-500.0,0.00012049,2]
[347669485,1736046649455,-500.0,0.00012049,2]
[347669486,1736046649465,-500.0,0.00012049,2]
[347669487,1736046649474,-500.0,0.00012049,2]
[347669488,1736046649483,-500.0,0.00012049,2]
[347669489,1736046649493,-500.0,0.00012049,2]
[347669490,1736046649502,-500.0,0.00012049,2]
[347669491,1736046649511,-500.0,0.00012049,2]
[347669492,1736046649520,-500.0,0.00012049,2]
[347669493,1736046649529,-500.0,0.00012049,2]
[347669494,1736046649539,-500.0,0.00012049,2]
[347669495,1736046649548,-536.50139556,0.00012049,2]
[347669496,1736046649557,-500.0,0.00012049,2]
[347669497,1736046649566,-581.84853966,0.00012049,2]
[347669498,1736046649575,-500.0,0.00012049,2]
[347669499,1736046649588,-500.0,0.00012049,2]
[347669500,1736046649597,-210.536298,0.00012049,2]
[347669501,1736046649607,-500.0,0.00012049,2]
[347669502,1736046649616,-500.0,0.00012049,2]
[347669503,1736046649627,-2901.19,0.00012049,2]
[347669504,1736046649636,-500.0,0.00012049,2]
[347669505,1736046649645,-500.0,0.00012049,2]
[347669506,1736046649655,-590.77,0.00012049,2]
[347669507,1736046649664,-500.0,0.00012049,2]
[347669508,1736046649674,-500.0,0.00012049,2]
[347669509,1736046649683,-500.0,0.00012049,2]
[347669510,1736046649691,-500.0,0.00012049,2]
[347669511,1736046649701,-500.0,0.00012049,2]
[347669512,1736046649709,-500.0,0.00012049,2]
[347669513,1736046649718,-500.0,0.00012049,2]
[347669514,1736046649727,-865.61,0.00012049,2]
[347669515,1736046649735,-500.0,0.00012049,2]
[347669516,1736046649745,-500.0,0.00012049,2]
[347669517,1736046649755,-500.0,0.00012049,2]
[347669518,1736046649764,-500.0,0.00012049,2]
[347669519,1736046649772,-379.36793392,0.00012049,2]
[347669520,1736046649781,-500.0,0.00012049,2]
[347669521,1736046649790,-500.0,0.00012049,2]
[347669522,1736046649799,-500.0,0.00012049,2]
[347669523,1736046649808,-500.0,0.00012049,2]
[347669524,1736046649817,-1747.09310426,0.0001205,2]
[347669525,1736046649826,-244822.18738174,0.0001205,2]
[347669526,1736046649889,-267.618,0.0001205,2]
[347669527,1736046697319,-2000.0,0.00013,15]
[347669529,1736047094480,1131500.47256133,7.13e-05,2]
[347669530,1736047138447,306651.19151884,7.11e-05,2]
[347669532,1736047555292,9440.38467333,6.94e-05,2]
[347669549,1736047832533,-389.40734789,8.219e-05,2]
[347669550,1736047832544,-110.59265211,8.219e-05,2]
[347669551,1736047832554,-412.20736789,8.219e-05,2]
[347669552,1736047832567,-87.79263211,8.219e-05,2]
[347669553,1736047832579,-502.15519479,8.219e-05,2]
[347669554,1736047832589,-500.0,8.219e-05,2]
[347669555,1736047832598,-307.95022166,8.219e-05,2]
[347669556,1736047832611,-192.04977834,8.219e-05,2]
[347669557,1736047832620,-500.0,8.219e-05,2]
[347669558,1736047832630,-89.28021916,8.219e-05,2]
[347669559,1736047832641,-410.71978084,8.219e-05,2]
[347669560,1736047832651,-303.38498333,8.219e-05,2]
[347669561,1736047832663,-209.51950486,8.219e-05,2]
[347669562,1736047832673,-500.0,8.219e-05,2]
[347669563,1736047832682,-212.72416014,8.219e-05,2]
[347669564,1736047832712,-287.27583986,8.219e-05,2]
[347669565,1736047832722,-503.08702565,8.219e-05,2]
[347669566,1736047832731,-500.93331021,8.219e-05,2]
[347669567,1736047832741,-500.0,8.219e-05,2]
[347669568,1736047832750,-500.0,8.219e-05,2]
[347669569,1736047832759,-502.61471287,8.219e-05,2]
[347669570,1736047832769,-500.0,8.219e-05,2]
[347669571,1736047832779,-500.0,8.219e-05,2]
[347669572,1736047832789,-502.85396386,8.219e-05,2]
[347669573,1736047832798,-500.0,8.219e-05,2]
[347669574,1736047832807,-500.58754509,8.219e-05,2]
[347669575,1736047832817,-504.68662697,8.219e-05,2]
[347669576,1736047832827,-505.8547295,8.219e-05,2]
[347669577,1736047832836,-500.0,8.219e-05,2]
[347669578,1736047832846,-500.0,8.219e-05,2]
[347669579,1736047832856,-504.84524935,8.219e-05,2]
[347669580,1736047832867,-500.0,8.219e-05,2]
[347669581,1736047832876,-405.42376729,8.219e-05,2]
[347669582,1736047832889,-94.57623271,8.219e-05,2]
[347669583,1736047832899,-640.94,8.219e-05,2]
[347669584,1736047832908,-500.0,8.219e-05,2]
[347669585,1736047832917,-621.33,8.219e-05,2]
[347669586,1736047832926,-500.0,8.219e-05,2]
[347669587,1736047832936,-500.0,8.219e-05,2]
[347669588,1736047832945,-500.0,8.219e-05,2]
[347669589,1736047832954,-500.0,8.219e-05,2]
[347669590,1736047832964,-500.0,8.219e-05,2]